[Event "Djerba Festival Blitz 2025"]
[Site "Djerba"]
[Date "2025.02.21"]
[Round "5.42"]
[White "Charfeddine, Khaled"]
[Black "Feurprier, Matteo"]
[Result "1-0"]
[ECO "D37"]
[WhiteElo "1908"]
[BlackElo "1537"]
[PlyCount "49"]
[EventDate "2025.02.15"]
[EventType "swiss"]
[EventCountry "TUN"]
[TimeControl "180+3"]

1. d4 {[%emt 0:00:02]} d5 {[%emt 0:00:03]} 2. c4 {[%emt 0:00:03]} e6 {[%emt 0:00:02]} 3. Nc3 {[%emt 0:00:02]} Nf6 {[%emt 0:00:01]} 4. a3 {[%emt 0:00:03]} Be7 {[%emt 0:00:06]} 5. Bf4 {[%emt 0:00:03]} c6 {[%emt 0:00:02]} 6. e3 {[%emt 0:00:02]} b6 {[%emt 0:00:12]} 7. Nf3 {[%emt 0:00:03]} Nbd7 {[%emt 0:00:02]} 8. Bd3 {[%emt 0:00:03]} O-O {[%emt 0:00:05]} 9. O-O {[%emt 0:00:02]} Bb7 {[%emt 0:00:02]} 10. cxd5 {[%emt 0:00:07]} cxd5 {[%emt 0:00:05]} 11. Rc1 {[%emt 0:00:04]} Rc8 {[%emt 0:00:01]} 12. Qe2 {[%emt 0:00:04]} Ne4 {[%emt 0:00:16]} 13. Bxe4 {[%emt 0:00:38]} dxe4 {[%emt 0:00:03]} 14. Nd2 {[%emt 0:00:03]} Nf6 {[%emt 0:00:02]} 15. h3 {[%emt 0:00:09]} Bd6 {[%emt 0:00:17]} 16. Bxd6 {[%emt 0:00:09]} Qxd6 {[%emt 0:00:03]} 17. b4 {[%emt 0:00:21]} Rc7 {[%emt 0:00:02]} 18. Nb5 {[%emt 0:00:03]} Ba6 {[%emt 0:00:12]} 19. Nxd6 {[%emt 0:00:02]} Bxe2 {[%emt 0:00:03]} 20. Rxc7 {[%emt 0:00:03]} Bxf1 {[%emt 0:00:05]} 21. Kxf1 {[%emt 0:00:04]} Rd8 {[%emt 0:00:02]} 22. Rc8 {[%emt 0:00:07]} Rxc8 {[%emt 0:00:08]} 23. Nxc8 {[%emt 0:00:02]} Nd5 {[%emt 0:00:02]} 24. Nxa7 {[%emt 0:00:05]} Kf8 {[%emt 0:00:11]} 25. Nxe4 {[%emt 0:00:04]} 1-0

[Event "Djerba Festival Blitz 2025"]
[Site "Djerba"]
[Date "2025.02.21"]
[Round "5.43"]
[White "Ferahi, Tarik"]
[Black "Mathanchandaran, Dev"]
[Result "1-0"]
[ECO "C68"]
[WhiteElo "1612"]
[BlackElo "1650"]
[PlyCount "32"]
[EventDate "2025.02.15"]
[EventType "swiss"]
[EventCountry "TUN"]
[TimeControl "180+3"]

1. e4 {[%emt 0:03:06]} e5 {[%emt 0:03:06]} 2. Nf3 {[%emt 0:00:03]} Nc6 3. Bb5 a6 {[%emt 0:00:06]} 4. Bxc6 {[%emt 0:00:06]} dxc6 5. O-O {[%emt 0:00:03]} Bd6 {[%emt 0:00:06]} 6. d4 {[%emt 0:00:03]} exd4 {[%emt 0:00:03]} 7. Qxd4 {[%emt 0:00:03]} f6 {[%emt 0:00:03]} 8. Be3 Bd7 {[%emt 0:00:03]} 9. Nc3 {[%emt 0:00:06]} Qe7 {[%emt 0:00:03]} 10. Rfe1 {[%emt 0:00:03]} Nh6 {[%emt 0:00:03]} 11. Bxh6 {[%emt 0:00:03]} gxh6 {[%emt 0:00:03]} 12. e5 {[%emt 0:00:03]} Bc5 {[%emt 0:00:03]} 13. exf6 {[%emt 0:00:03]} Bxd4 {[%emt 0:00:03]} 14. Re3 {[%emt 0:00:03]} Kd8 15. Rxe7 Rf8 16. Nxd4 Be6 {[%emt 0:00:09]} 1-0

[Event "Djerba Festival Blitz 2025"]
[Site "Djerba"]
[Date "2025.02.21"]
[Round "5.45"]
[White "Guinet, Stephane"]
[Black "Doucet, Jean Gabriel"]
[Result "1-0"]
[ECO "C44"]
[WhiteElo "1617"]
[BlackElo "1506"]
[PlyCount "25"]
[EventDate "2025.02.15"]
[EventType "swiss"]
[EventCountry "TUN"]
[TimeControl "180+3"]

1. e4 {[%emt 0:03:06]} e5 {[%emt 0:03:06]} 2. Nf3 {[%emt 0:00:03]} Nc6 3. d4 exd4 {[%emt 0:00:06]} 4. Bc4 {[%emt 0:00:06]} Bb4+ {[%emt 0:00:03]} 5. c3 {[%emt 0:00:03]} dxc3 {[%emt 0:00:03]} 6. O-O {[%emt 0:00:03]} cxb2 {[%emt 0:00:03]} 7. Bxb2 d6 {[%emt 0:00:03]} 8. a3 {[%emt 0:00:06]} Ba5 {[%emt 0:00:03]} 9. Bxg7 {[%emt 0:00:03]} h6 {[%emt 0:00:03]} 10. Bxh8 {[%emt 0:00:03]} f6 11. Qd5 {[%emt 0:00:03]} Nge7 {[%emt 0:00:06]} 12. Qf7+ {[%emt 0:00:03]} Kd7 {[%emt 0:00:03]} 13. Be6# {[%emt 0:00:03] Nb8} 1-0

[Event "Djerba Festival Blitz 2025"]
[Site "Djerba"]
[Date "2025.02.21"]
[Round "5.46"]
[White "McDonald, Margaret"]
[Black "Baba, Ayoub"]
[Result "0-1"]
[ECO "B23"]
[WhiteElo "1404"]
[BlackElo "1469"]
[PlyCount "53"]
[EventDate "2025.02.15"]
[EventType "swiss"]
[EventCountry "TUN"]
[TimeControl "180+3"]

1. e4 {[%emt 0:00:03]} c5 {[%emt 0:00:02]} 2. Nc3 {[%emt 0:00:03]} Nc6 {[%emt 0:00:02]} 3. f4 {[%emt 0:00:03]} Nf6 {[%emt 0:00:03]} 4. Nf3 {[%emt 0:00:02]} e6 {[%emt 0:00:04]} 5. Bc4 {[%emt 0:00:09]} d5 {[%emt 0:00:04]} 6. exd5 {[%emt 0:00:05]} exd5 {[%emt 0:00:07]} 7. Be2 {[%emt 0:00:07]} d4 {[%emt 0:00:03]} 8. Nb1 {[%emt 0:00:13]} Bd6 {[%emt 0:00:03]} 9. d3 {[%emt 0:00:04]} O-O {[%emt 0:00:11]} 10. O-O {[%emt 0:00:04]} Qc7 {[%emt 0:00:10]} 11. Qd2 {[%emt 0:00:09]} Nd5 {[%emt 0:00:13]} 12. Ne5 {[%emt 0:00:24]} Nxe5 {[%emt 0:00:19]} 13. fxe5 {[%emt 0:00:03]} Bxe5 {[%emt 0:00:02]} 14. c4 {[%emt 0:00:10]} Ne3 {[%emt 0:00:10]} 15. Rf3 {[%emt 0:00:22]} Bxh2+ {[%emt 0:00:06]} 16. Kh1 {[%emt 0:00:10]} Bg4 {[%emt 0:00:06]} 17. Rf2 {[%emt 0:00:15]} Bg3 {[%emt 0:00:31]} 18. Bxg4 {[%emt 0:00:20]} Nxg4 {[%emt 0:00:06]} 19. Rf3 {[%emt 0:00:06]} Ne3 {[%emt 0:00:08]} 20. Qe2 {[%emt 0:00:14]} Rfe8 {[%emt 0:00:15]} 21. Bxe3 {[%emt 0:00:05]} Re6 {[%emt 0:00:31]} 22. Nd2 {[%emt 0:00:26]} Rae8 {[%emt 0:00:09]} 23. Ne4 {[%emt 0:00:03]} dxe3 {[%emt 0:00:07]} 24. Nxg3 {[%emt 0:00:10]} Rh6+ {[%emt 0:00:05]} 25. Kg1 {[%emt 0:00:04]} Qe5 {[%emt 0:00:17]} 26. Re1 {[%emt 0:00:10]} f6 {[%emt 0:00:20]} 27. Qxe3 {[%emt 0:00:20]} 0-1

[Event "Djerba Festival Blitz 2025"]
[Site "Djerba"]
[Date "2025.02.21"]
[Round "5.47"]
[White "Kammoun, Adam"]
[Black "Hinard, Jeremy"]
[Result "1-0"]
[ECO "E32"]
[WhiteElo "1571"]
[BlackElo "1609"]
[PlyCount "72"]
[EventDate "2025.02.15"]
[EventType "swiss"]
[EventCountry "TUN"]
[TimeControl "180+3"]

1. d4 {[%emt 0:03:06]} Nf6 {[%emt 0:03:06]} 2. c4 e6 3. Nc3 {[%emt 0:00:06]} Bb4 {[%emt 0:00:06]} 4. Qc2 O-O {[%emt 0:00:03]} 5. Bg5 h6 {[%emt 0:00:03]} 6. Bh4 {[%emt 0:00:09]} Be7 {[%emt 0:00:03]} 7. Nf3 {[%emt 0:00:03]} d5 {[%emt 0:00:03]} 8. cxd5 {[%emt 0:00:03]} exd5 {[%emt 0:00:03]} 9. e3 {[%emt 0:00:03]} c6 {[%emt 0:00:03]} 10. Be2 {[%emt 0:00:03]} Re8 {[%emt 0:00:03]} 11. O-O {[%emt 0:00:03]} Nbd7 {[%emt 0:00:03]} 12. Rac1 {[%emt 0:00:03]} Nf8 {[%emt 0:00:03]} 13. Qb3 {[%emt 0:00:03]} Ng6 {[%emt 0:00:03]} 14. Bg3 {[%emt 0:00:03]} Nh5 {[%emt 0:00:03]} 15. Nd2 {[%emt 0:00:03]} Nxg3 {[%emt 0:00:03]} 16. fxg3 {[%emt 0:00:03]} Bg5 {[%emt 0:00:03]} 17. Nd1 {[%emt 0:00:03]} Qc7 {[%emt 0:00:03]} 18. Bf3 {[%emt 0:00:03]} Be6 {[%emt 0:00:03]} 19. Qb4 {[%emt 0:00:03]} Be7 {[%emt 0:00:03]} 20. Qa4 {[%emt 0:00:03]} Bd7 {[%emt 0:00:03]} 21. e4 {[%emt 0:00:03]} c5 {[%emt 0:00:03]} 22. Qb3 {[%emt 0:00:03]} c4 {[%emt 0:00:03]} 23. Qc2 {[%emt 0:00:03]} Qb6 {[%emt 0:00:03]} 24. exd5 {[%emt 0:00:03]} Qxd4+ {[%emt 0:00:03]} 25. Kh1 {[%emt 0:00:03]} Bd6 {[%emt 0:00:03]} 26. Bh5 {[%emt 0:00:03]} b5 27. Bxg6 fxg6 {[%emt 0:00:06]} 28. Qxg6 {[%emt 0:00:06]} Qxd2 {[%emt 0:00:03]} 29. Qf7+ {[%emt 0:00:03]} Kh8 {[%emt 0:00:03]} 30. Nc3 {[%emt 0:00:03]} Rf8 {[%emt 0:00:03]} 31. Qxd7 {[%emt 0:00:03]} Rxf1+ {[%emt 0:00:03]} 32. Rxf1 {[%emt 0:00:03]} Qd3 {[%emt 0:00:03]} 33. Kg1 {[%emt 0:00:03]} Bc5+ {[%emt 0:00:03]} 34. Rf2 {[%emt 0:00:03]} Qb1+ {[%emt 0:00:03]} 35. Nxb1 {[%emt 0:00:03]} Bxf2+ {[%emt 0:00:03]} 36. Kxf2 {[%emt 0:00:03]} Re8 {[%emt 0:00:03]} 1-0

[Event "Djerba Festival Blitz 2025"]
[Site "Djerba"]
[Date "2025.02.21"]
[Round "5.48"]
[White "Doucet, Paul-Loup"]
[Black "Soudani, Hassan"]
[Result "0-1"]
[ECO "B30"]
[WhiteElo "1503"]
[BlackElo "1598"]
[PlyCount "134"]
[EventDate "2025.02.15"]
[EventType "swiss"]
[EventCountry "TUN"]
[TimeControl "180+3"]

1. e4 {[%emt 0:00:03]} c5 {[%emt 0:00:04]} 2. Nf3 {[%emt 0:00:03]} Nc6 {[%emt 0:00:02]} 3. Bc4 {[%emt 0:00:04]} Nf6 {[%emt 0:00:06]} 4. Ng5 {[%emt 0:00:06]} e6 {[%emt 0:00:04]} 5. e5 {[%emt 0:00:03]} Nxe5 {[%emt 0:00:22]} 6. Be2 {[%emt 0:00:09]} b5 {[%emt 0:00:12]} 7. O-O {[%emt 0:00:03]} a6 {[%emt 0:00:04]} 8. f4 {[%emt 0:00:08]} Nc6 {[%emt 0:00:09]} 9. c3 {[%emt 0:00:04]} h6 {[%emt 0:00:02]} 10. Nf3 {[%emt 0:00:05]} d5 {[%emt 0:00:05]} 11. Ne5 {[%emt 0:00:03]} Bb7 {[%emt 0:00:04]} 12. d4 {[%emt 0:00:06]} Ne4 {[%emt 0:00:04]} 13. Bh5 {[%emt 0:00:11]} g6 {[%emt 0:00:10]} 14. Bg4 {[%emt 0:00:15]} Bg7 {[%emt 0:00:02]} 15. Nd2 {[%emt 0:00:08]} cxd4 {[%emt 0:00:04]} 16. Nxe4 {[%emt 0:00:09]} dxe4 {[%emt 0:00:02]} 17. cxd4 {[%emt 0:00:10]} Qxd4+ {[%emt 0:00:09]} 18. Qxd4 {[%emt 0:00:08]} Nxd4 {[%emt 0:00:03]} 19. Be3 {[%emt 0:00:08]} Nc2 {[%emt 0:00:07]} 20. Bc5 {[%emt 0:00:11]} Nxa1 {[%emt 0:02:08]} 21. Rxa1 {[%emt 0:01:49]} Bxe5 {[%emt 0:00:00]} 22. fxe5 {[%emt 0:00:00]} O-O-O {[%emt 0:00:00]} 23. Ba7 {[%emt 0:00:00]} Bc6 {[%emt 0:00:00]} 24. Rc1 {[%emt 0:00:00]} Kb7 {[%emt 0:00:00]} 25. Bc5 {[%emt 0:00:00]} Rd2 {[%emt 0:00:00]} 26. Rf1 {[%emt 0:00:00]} Rh7 {[%emt 0:00:00]} 27. a4 {[%emt 0:00:00]} Rxb2 {[%emt 0:00:00]} 28. a5 {[%emt 0:00:00]} Rd2 {[%emt 0:00:00]} 29. Bb4 {[%emt 0:00:00]} e3 {[%emt 0:00:00]} 30. Bxd2 {[%emt 0:00:00]} exd2 {[%emt 0:00:00]} 31. Rf4 {[%emt 0:00:00]} Bd7 {[%emt 0:00:00]} 32. Bf3+ {[%emt 0:00:05]} Bc6 {[%emt 0:00:04]} 33. Bd1 {[%emt 0:00:08]} Kc7 {[%emt 0:00:04]} 34. Rd4 {[%emt 0:00:03]} Rh8 {[%emt 0:00:04]} 35. Rf4 {[%emt 0:00:12]} Rh7 {[%emt 0:00:03]} 36. Kf2 {[%emt 0:00:04]} g5 {[%emt 0:00:08]} 37. Rd4 {[%emt 0:00:02]} Rh8 {[%emt 0:00:03]} 38. Rxd2 {[%emt 0:00:03]} Rd8 {[%emt 0:00:02]} 39. Rxd8 {[%emt 0:00:03]} Kxd8 {[%emt 0:00:03]} 40. Bh5 {[%emt 0:00:04]} Ke7 {[%emt 0:00:04]} 41. Ke3 {[%emt 0:00:01]} Bxg2 {[%emt 0:00:04]} 42. Kd4 {[%emt 0:00:02]} f6 {[%emt 0:00:27]} 43. exf6+ {[%emt 0:00:19]} Kxf6 {[%emt 0:00:00]} 44. Kc5 {[%emt 0:00:00]} Kf5 {[%emt 0:00:00]} 45. Kb6 {[%emt 0:00:00]} b4 {[%emt 0:00:00]} 46. Kxa6 {[%emt 0:00:00]} b3 {[%emt 0:00:00]} 47. Be2 {[%emt 0:00:00]} Be4 {[%emt 0:00:00]} 48. Bc4 {[%emt 0:00:05]} b2 {[%emt 0:00:00]} 49. Ba2 {[%emt 0:00:02]} b1=Q 50. Bxb1 {[%emt 0:00:02]} Bxb1 {[%emt 0:00:00]} 51. Kb7 {[%emt 0:00:02]} Be4+ {[%emt 0:00:00]} 52. Kc7 {[%emt 0:00:02]} h5 {[%emt 0:00:00]} 53. a6 {[%emt 0:00:02]} h4 {[%emt 0:00:00]} 54. a7 {[%emt 0:00:02]} g4 {[%emt 0:00:00]} 55. Kb6 {[%emt 0:00:02]} g3 {[%emt 0:00:00]} 56. hxg3 {[%emt 0:00:04]} hxg3 {[%emt 0:00:00]} 57. Kc5 {[%emt 0:00:02]} g2 {[%emt 0:00:00]} 58. Kd4 {[%emt 0:00:03]} g1=Q+ {[%emt 0:00:00]} 59. Kc3 {[%emt 0:00:02]} Ke5 {[%emt 0:00:00]} 60. Kb4 {[%emt 0:00:02]} Kd6 {[%emt 0:00:00]} 61. Ka5 {[%emt 0:00:03]} Kc7 {[%emt 0:00:00]} 62. Ka6 {[%emt 0:00:02]} Qb1 {[%emt 0:00:01]} 63. a8=N+ {[%emt 0:00:23]} Bxa8 {[%emt 0:01:02]} 64. Ka5 {[%emt 0:00:00]} Kc6 {[%emt 0:00:00]} 65. Ka4 {[%emt 0:00:00]} Kc5 {[%emt 0:00:00]} 66. Ka3 {[%emt 0:00:00]} Kc4 {[%emt 0:00:00]} 67. Ka4 {[%emt 0:00:02]} Qb4# {[%emt 0:00:00]} 0-1